bitfinex/quotes_ETHUSD_20240811
["timestamp","ask_amount","ask_price","bid_price","bid_amount"]
[1723382642705,0.04629364,2633.4,2633.3,8.10359418]
[1723382643753,0.04629364,2633.4,2633.3,1.39413242]
[1723382644265,7.69661364,2633.4,2633.3,1.33967483]
[1723382645078,10.90477364,2633.4,2633.3,1.33967483]
[1723382645402,7.69661364,2633.4,2633.3,1.33967483]
[1723382645595,8.24661364,2633.4,2633.3,1.33967483]
[1723382645783,9.337082,2633.4,2633.3,1.33967483]
[1723382646173,11.995242,2633.4,2633.3,1.33967483]
[1723382647933,18.96775181,2633.4,2633.3,4.83e-06]
[1723382648132,19.36445047,2633.4,2633.3,4.83e-06]
[1723382648645,18.05010066,2633.4,2633.3,4.83e-06]
[1723382648796,19.36453065,2633.4,2633.3,4.83e-06]
[1723382649299,18.05010066,2633.4,2633.3,4.83e-06]
[1723382649492,19.36447611,2633.4,2633.3,4.83e-06]
[1723382649705,19.46447611,2633.4,2633.3,4.83e-06]
[1723382649930,22.22263611,2633.4,2633.3,4.83e-06]
[1723382650313,20.90826066,2633.4,2633.3,4.83e-06]
[1723382650535,2.65955,2632.1,2631.4,2.66011]
[1723382650837,2.65953,2632.1,2631.5,0.0563927]
[1723382651137,5.31906,2632.1,2631.5,0.0563927]
[1723382651323,5.3191,2632.1,2631.5,2.7164027]
[1723382651501,2.65953,2632.1,2631.6,0.32484347]
[1723382651702,2.65953,2632.1,2631.7,0.05627611]
[1723382652112,2.65953,2632.1,2631.4,0.532032]
[1723382652113,2.65963,2632.0,2631.4,0.532032]
[1723382652439,2.65968,2631.9,2631.5,0.05649504]
[1723382653429,2.3781,2631.8,2631.5,0.05649504]
[1723382653632,7.3,2632.4,2631.5,0.05649504]
[1723382653633,5.03762,2632.1,2631.5,0.05649504]
[1723382653795,2.3781,2632.1,2631.5,2.66007]
[1723382653994,2.65934,2632.3,2631.5,3.162727]
[1723382654199,2.65944,2632.2,2631.5,3.162727]
[1723382654399,2.65944,2632.2,2631.5,5.822737]
[1723382654715,9.6781,2632.4,2631.8,2.65977]
[1723382654921,9.6781,2632.4,2631.9,0.05633352]
[1723382655097,9.9592,2632.4,2631.9,0.05633352]
[1723382655295,7.3,2632.4,2631.9,5.02611]
[1723382655520,7.3,2632.4,2632.0,2.65957]
[1723382655720,19.77,2632.5,2632.1,0.05615896]
[1723382656128,7.3,2632.7,2632.3,2.65919]
[1723382656329,7.3,2632.7,2631.9,2.869111]
[1723382656330,7.3,2632.7,2632.1,2.65942]
[1723382656634,7.3,2632.7,2632.2,2.71546069]
[1723382656799,7.3,2632.7,2632.3,2.65926]
[1723382657004,9.95892,2632.7,2632.2,0.05610069]
[1723382657199,7.3,2632.7,2632.4,0.05594663]
[1723382657413,2.65872,2632.9,2632.3,2.71520489]
[1723382657705,2.65858,2633.0,2632.4,3.01378263]
[1723382657916,2.65858,2633.0,2632.4,2.71510663]
[1723382658309,12.3366,2633.1,2632.4,5.08160663]
[1723382660034,2.65856,2633.0,2632.4,5.08160663]
[1723382660239,2.65856,2633.0,2632.4,5.85568729]
[1723382660438,2.65856,2633.0,2632.4,5.79974066]
[1723382660644,2.65856,2633.0,2632.5,0.05573146]
[1723382661942,2.65884,2632.8,2632.5,0.05573146]
[1723382662119,2.65884,2632.8,2632.2,2.65937]
[1723382662304,2.65876,2632.8,2632.3,0.05584799]
[1723382662504,2.65876,2632.8,2632.2,3.161957]
[1723382662747,2.65894,2632.7,2632.3,0.05584799]
[1723382663119,2.65877,2632.8,2632.1,2.3665]
[1723382663421,2.65877,2632.8,2632.2,3.21775105]
[1723382664118,2.65873,2632.9,2632.2,3.21775105]
[1723382664325,2.65883,2632.8,2632.2,3.21775105]
[1723382664707,2.65894,2632.7,2632.2,0.05583805]
[1723382664903,2.65908,2632.5,2632.2,0.05583805]
[1723382665211,5.00184,2632.7,2632.0,2.65949]
[1723382665434,5.00184,2632.7,2632.3,0.05580707]
[1723382665637,5.00184,2632.7,2632.1,2.65946]
[1723382665941,2.65897,2632.6,2632.0,2.65949]
[1723382666143,2.65897,2632.6,2632.0,5.31901]
[1723382666448,2.65876,2632.8,2632.2,4.96606]
[1723382666952,2.65863,2633.0,2632.3,0.1318106]
[1723382667145,2.65863,2633.0,2632.4,2.65911]
[1723382667445,7.3,2633.1,2632.5,0.0555989]
[1723382667446,2.65881,2632.8,2632.5,0.0555989]
[1723382667920,2.65881,2632.8,2632.3,2.73522927]
[1723382668120,2.65881,2632.8,2632.2,2.3067]
[1723382668121,2.65881,2632.8,2632.4,0.05565716]
[1723382668336,2.65881,2632.8,2632.2,2.3067]
[1723382668522,5.31763,2632.8,2632.3,0.05571542]
[1723382668722,2.65881,2632.8,2632.2,2.3067]
[1723382669130,2.65887,2632.7,2632.3,0.05571542]
[1723382669337,7.3,2633.1,2632.6,2.65891]
[1723382669507,7.3,2633.1,2632.6,4.96566]
[1723382669854,7.3,2633.1,2632.7,2.65886]
[1723382670373,7.3,2633.1,2632.8,0.05539686]
[1723382670868,9.95847,2633.1,2632.6,2.3067]
[1723382671051,9.95847,2633.1,2632.9,0.05533862]
[1723382671366,7.3,2633.1,2632.6,2.3067]
[1723382671834,12.61698,2633.1,2632.7,0.05545511]
[1723382672039,12.30136,2633.1,2632.7,0.05545511]
[1723382672362,12.30136,2633.1,2632.5,2.65905]
[1723382672527,12.30136,2633.1,2632.8,0.05539686]
[1723382672528,9.95846,2633.1,2632.8,0.05539686]
[1723382672733,9.95846,2633.1,2632.6,0.531817]
[1723382673046,9.95846,2633.1,2632.7,0.05545511]
[1723382674730,2.65846,2633.1,2632.7,0.05545511]
[1723382676169,22.42836,2633.2,2632.7,0.05545511]
[1723382676464,19.77,2633.2,2632.7,2.71426511]
[1723382676765,22.42836,2633.2,2632.7,2.71426511]
[1723382677567,19.77,2633.2,2632.7,2.71426511]
[1723382677977,22.42841,2633.2,2632.7,2.71426511]
[1723382678838,22.42841,2633.2,2632.8,2.3067]
[1723382679051,7.34629364,2633.4,2633.0,2.65856]
[1723382679248,7.34629364,2633.4,2632.9,2.65861]
[1723382679249,0.04629364,2633.4,2632.9,0.07595109]
[1723382679573,0.04629364,2633.4,2633.0,2.65856]
[1723382680071,0.04629364,2633.4,2633.1,0.13081013]
[1723382680272,0.04629364,2633.4,2633.1,0.05486071]
[1723382680637,0.04629364,2633.4,2633.1,2.71327071]
[1723382680977,0.04629364,2633.4,2633.2,4.96501]
[1723382681173,0.04629364,2633.4,2633.3,0.76783207]
[1723382681333,0.04629364,2633.4,2633.3,0.82257632]
[1723382681879,0.04629364,2633.4,2633.3,0.05474425]
[1723382682184,0.04629364,2633.4,2632.9,2.65861]
[1723382682338,2.70451364,2633.4,2632.7,5.31759]
[1723382682533,2.65836,2633.2,2632.8,0.05503542]
[1723382682737,2.70451364,2633.4,2632.7,2.65881]
[1723382682937,2.70450364,2633.4,2632.8,2.71376542]
[1723382683382,2.65831,2633.3,2632.8,0.05503542]
[1723382683876,2.65831,2633.3,2632.7,2.6588]
[1723382684047,2.65831,2633.3,2632.9,0.05497718]
[1723382684373,0.04629364,2633.4,2633.0,2.71340894]
[1723382684541,0.04629364,2633.4,2633.0,5.02017894]
[1723382685141,0.04629364,2633.4,2633.0,2.36161894]
[1723382685269,0.04629364,2633.4,2633.0,0.05491894]
[1723382685676,2.65826,2633.3,2632.8,2.65876]
[1723382685982,2.65826,2633.3,2632.8,3.27629227]
[1723382686196,2.65826,2633.3,2632.9,0.05497718]
[1723382686612,2.65842,2633.2,2632.9,0.05497718]
[1723382687207,2.6585,2633.1,2632.7,3.5165327]
[1723382687410,2.6585,2633.1,2633.0,0.05491894]
[1723382687594,2.6585,2633.1,2632.5,5.65898]
[1723382687784,2.6585,2633.1,2633.0,0.05491894]
[1723382687985,2.6585,2633.1,2632.5,8.31799]
[1723382688186,2.6585,2633.1,2633.0,0.05491894]
[1723382688407,5.04442,2633.2,2632.6,2.6589]
[1723382688580,2.70449364,2633.4,2633.0,0.05491894]
[1723382688824,2.70449364,2633.4,2632.9,2.65866]
[1723382688989,2.70449364,2633.4,2632.9,3.190412]
[1723382689173,5.36271364,2633.4,2633.0,0.05491894]
[1723382689375,2.70449364,2633.4,2633.0,0.05491894]
[1723382691714,0.04629364,2633.4,2633.0,2.71342894]
[1723382691913,0.04629364,2633.4,2633.0,3.49072683]
[1723382693182,0.04629364,2633.4,2633.0,2.71342894]
[1723382693820,2.70447364,2633.4,2633.0,0.05491894]
[1723382694014,0.04629364,2633.4,2633.0,0.05491894]
[1723382694387,0.04629364,2633.4,2633.0,2.71347894]
[1723382695916,0.04629364,2633.4,2633.0,2.71342894]
[1723382696418,2.70445364,2633.4,2633.0,0.05491894]
[1723382696727,3.240706,2633.4,2633.0,0.05491894]
[1723382696889,3.240706,2633.4,2632.8,2.65868]
[1723382697089,3.240706,2633.4,2632.9,0.05486468]
[1723382697821,0.582546,2633.4,2632.9,2.71351468]
[1723382697992,0.04629364,2633.4,2632.9,2.71351468]
[1723382698196,0.04629364,2633.4,2632.9,0.05486468]
[1723382698415,2.65827,2633.3,2632.9,0.05486468]
[1723382699025,2.65827,2633.3,2632.8,2.65875]
[1723382699425,2.65827,2633.3,2632.9,0.05486468]
[1723382700986,5.09046364,2633.4,2632.9,0.05486468]
[1723382701188,2.65827,2633.3,2632.9,0.05486468]
[1723382702385,0.77486936,2633.3,2632.9,0.05486468]
[1723382702581,7.70312,2633.0,2632.9,0.05486468]
[1723382702819,7.70312,2633.0,2632.4,3.0]
[1723382702820,2.65867,2632.9,2632.4,3.0]
[1723382703235,2.65867,2632.9,2632.5,0.05503631]
[1723382705282,5.12131,2633.3,2632.6,2.2591]
[1723382705523,2.65831,2633.3,2632.8,2.65876]
[1723382705826,2.65831,2633.3,2632.9,0.05490556]
[1723382705994,2.65831,2633.3,2632.7,5.54902363]
[1723382706334,2.65831,2633.3,2633.0,0.05484732]
[1723382706500,2.65831,2633.3,2632.8,0.78081236]
[1723382706697,2.65831,2633.3,2632.7,2.89021363]
[1723382706887,2.65831,2633.3,2632.8,0.0549638]
[1723382707437,2.65831,2633.3,2632.7,2.89021363]
[1723382707604,2.65831,2633.3,2632.9,0.05490556]
[1723382708091,2.65831,2633.3,2632.7,5.54902363]
[1723382708288,2.65831,2633.3,2633.0,0.05484732]
[1723382708495,2.65831,2633.3,2632.7,5.31761]
[1723382708727,2.65831,2633.3,2633.1,0.05478909]
[1723382709027,2.65831,2633.3,2632.7,6.075281]
[1723382709028,2.65831,2633.3,2632.7,5.31761]
[1723382709526,0.04629364,2633.4,2632.9,2.65863]
[1723382709898,2.70446364,2633.4,2633.0,0.05484732]
[1723382710226,2.70446364,2633.4,2632.9,2.65866]
[1723382710227,0.04629364,2633.4,2632.9,2.65866]
[1723382710523,0.04629364,2633.4,2633.1,0.05478909]
[1723382710887,2.70445364,2633.4,2632.8,2.65875]
[1723382711082,2.70445364,2633.4,2633.2,0.05473086]
[1723382711330,2.70445364,2633.4,2632.8,2.65875]
[1723382711498,3.487012,2633.4,2632.8,2.65875]
[1723382711717,3.487012,2633.4,2632.9,0.05490556]
[1723382712237,3.487012,2633.4,2632.9,2.71356556]
[1723382712730,2.65827,2633.3,2632.9,0.05490556]
[1723382713090,2.65827,2633.3,2632.8,2.65876]
[1723382713430,2.65827,2633.3,2633.0,0.05476399]
[1723382713632,3.2727952,2633.3,2632.9,0.05482223]
[1723382713925,3.2727952,2633.3,2633.1,0.05470575]
[1723382713926,2.65827,2633.3,2633.1,0.05470575]
[1723382714129,2.65827,2633.3,2633.0,0.05476399]
[1723382714332,2.65827,2633.3,2632.8,2.65876]
[1723382714487,2.65827,2633.3,2633.1,0.05470575]
[1723382714826,2.65827,2633.3,2632.8,2.65876]
[1723382715027,2.70445364,2633.4,2632.8,5.31746]
[1723382715191,2.70445364,2633.4,2632.9,2.71347223]
[1723382715393,0.04629364,2633.4,2632.9,2.71347223]
[1723382716426,2.70445364,2633.4,2632.9,2.71347223]
[1723382716631,3.487011,2633.4,2632.9,0.05482223]
[1723382717510,2.463,2633.3,2632.9,0.05482223]
[1723382717901,5.12127,2633.3,2632.9,0.05482223]
[1723382718411,5.12127,2633.3,2633.0,0.05477765]
[1723382718804,5.12127,2633.3,2632.8,2.65876]
[1723382719008,5.12127,2633.3,2633.1,0.05471942]
[1723382719194,5.12127,2633.3,2632.8,2.65876]
[1723382719399,5.12127,2633.3,2632.9,0.05483589]
[1723382719400,7.77958,2633.3,2632.9,0.05483589]
[1723382719637,5.12127,2633.3,2632.7,2.65885]
[1723382719838,5.12127,2633.3,2633.0,0.05477765]
[1723382720135,5.9820951,2633.3,2632.7,2.65885]
[1723382720305,5.31672,2633.2,2633.1,0.05471942]
[1723382720508,2.65847,2633.1,2632.5,2.65906]
[1723382720717,2.65847,2633.1,2632.5,2.65901]
[1723382720925,2.65847,2633.1,2632.6,0.05495949]
[1723382721306,2.65856,2633.0,2632.6,0.05495949]
[1723382721714,2.90937936,2633.2,2632.6,2.71391949]
[1723382722023,2.70445364,2633.4,2632.8,2.2591]
[1723382722224,2.70445364,2633.4,2632.8,4.91778]
[1723382722436,2.70445364,2633.4,2632.9,0.05483589]
[1723382722936,2.70445364,2633.4,2632.9,2.71347589]
[1723382722937,0.04629364,2633.4,2632.9,2.71347589]
[1723382723238,2.70445364,2633.4,2632.9,0.05483589]
[1723382724016,0.04629364,2633.4,2632.9,2.71343589]
[1723382724332,2.70449364,2633.4,2632.9,0.05483589]
[1723382724853,2.70449364,2633.4,2632.9,2.71344589]
[1723382725436,2.65826,2633.3,2632.9,0.05483589]
[1723382726013,2.65826,2633.3,2632.7,2.65881]
[1723382726240,2.65826,2633.3,2633.0,0.05477425]
[1723382726478,2.65826,2633.3,2632.8,2.65876]
[1723382726636,2.65826,2633.3,2633.1,0.05471601]
[1723382726836,2.65826,2633.3,2632.8,2.65876]
[1723382726837,3.17501536,2633.3,2632.8,2.65876]
[1723382727064,2.65826,2633.3,2632.8,2.65876]
[1723382727267,2.65826,2633.3,2632.9,0.05483248]
[1723382733797,2.70446364,2633.4,2632.9,0.05483248]
[1723382735315,0.04629364,2633.4,2632.9,0.05483248]
[1723382735497,2.65826,2633.3,2632.9,0.05483248]
[1723382735702,2.65826,2633.3,2632.7,2.65881]
[1723382735911,2.65826,2633.3,2633.0,0.05476401]
[1723382736091,2.65826,2633.3,2632.7,2.65881]
[1723382736295,2.65826,2633.3,2633.1,0.05470578]
[1723382736492,3.44082836,2633.3,2632.7,2.65881]
[1723382736681,2.65826,2633.3,2632.7,2.65881]
[1723382736880,2.65826,2633.3,2632.8,0.05488049]
[1723382737191,2.65856,2633.0,2632.9,0.05482225]
[1723382737394,2.65856,2633.0,2632.3,7.47927207]
[1723382737591,2.65871,2632.9,2632.4,0.05503169]
[1723382737800,9.95844,2633.2,2632.4,2.71418169]
[1723382738100,7.3,2633.2,2632.8,2.65876]
[1723382738525,7.3,2633.2,2632.9,0.05479498]
[1723382738706,2.65831,2633.3,2632.9,0.05479498]
[1723382740289,2.65831,2633.3,2632.7,5.08645]
[1723382740618,2.65831,2633.3,2632.7,6.10024094]
[1723382740910,2.65831,2633.3,2632.8,2.71361322]
[1723382741761,0.04629364,2633.4,2632.9,2.65861]
[1723382742115,2.70446364,2633.4,2633.0,0.05473674]
[1723382743550,0.04629364,2633.4,2633.1,2.65843]
[1723382743719,0.04629364,2633.4,2633.2,2.4276]
[1723382743920,0.04629364,2633.4,2633.2,2.48222028]
[1723382744119,0.04629364,2633.4,2633.2,5.21649281]
[1723382744319,0.04629364,2633.4,2633.3,2.65826]
[1723382744519,0.04629364,2633.4,2633.3,3.43815103]
[1723382744752,0.04629364,2633.4,2633.3,3.49257333]
[1723382745928,0.04629364,2633.4,2633.3,0.83431333]
[1723382748154,2.70445364,2633.4,2633.3,0.0544223]
[1723382748473,2.70445364,2633.4,2632.9,3.0]
[1723382748630,2.70445364,2633.4,2633.3,0.05434391]
[1723382748831,2.70445364,2633.4,2632.9,5.65866]
[1723382749036,2.70445364,2633.4,2633.3,0.05434391]
[1723382749233,2.65827,2633.3,2632.8,5.1429]
[1723382752846,5.31659,2633.3,2632.8,2.4842]
[1723382753042,2.65851,2633.1,2632.6,4.87525243]
[1723382753243,3.01988836,2633.3,2632.5,5.65906]
[1723382753244,5.1423,2632.9,2632.5,5.39105243]
[1723382753553,2.65843,2633.2,2632.7,2.65886]
[1723382753554,5.14203,2633.2,2632.7,2.65886]
[1723382753762,5.14203,2633.2,2632.6,2.65896]
[1723382753940,2.65847,2633.1,2632.6,2.65896]
[1723382754783,7.80048,2633.2,2632.6,2.65896]
[1723382754984,5.14203,2633.2,2632.7,2.65886]
[1723382755186,5.14202,2633.2,2632.6,2.65896]
[1723382755473,2.65857,2633.0,2632.5,3.0]
[1723382755680,2.4836,2632.9,2632.4,3.0]
[1723382755876,2.65877,2632.8,2632.4,3.0]
[1723382756260,5.14227,2632.9,2632.4,5.65916]
[1723382756583,2.65847,2633.1,2632.5,5.14321]
[1723382756880,2.65847,2633.1,2632.6,2.65896]
[1723382757287,2.65847,2633.1,2632.7,0.05469332]
[1723382757447,5.14201,2633.2,2632.7,0.05469332]
[1723382757639,2.65847,2633.1,2632.7,0.05469332]
[1723382759154,3.00243036,2633.2,2632.7,0.05469332]
[1723382759485,5.14196,2633.2,2632.7,0.05469332]
[1723382760777,2.4836,2633.2,2632.8,2.65872]
[1723382761284,5.66078236,2633.2,2632.9,0.0546893]
[1723382761647,2.4836,2633.1,2632.4,5.65909]
[1723382761945,2.65871,2632.9,2632.4,5.65909]
[1723382762151,2.65871,2632.9,2632.4,3.0]
[1723382762351,2.65871,2632.9,2632.4,5.65914]
[1723382763059,2.65872,2632.9,2632.4,3.0]
[1723382763265,2.65887,2632.7,2632.1,4.87540448]
[1723382763468,2.65906,2632.5,2632.0,5.05067448]
[1723382763685,2.65906,2632.5,2631.8,5.05089448]
[1723382763990,2.65906,2632.5,2632.0,2.65952]
[1723382764202,5.14253,2632.7,2632.0,2.65952]
[1723382764494,2.65896,2632.6,2632.0,2.65951]
[1723382764698,2.65896,2632.6,2632.0,5.31903]
[1723382764904,5.14253,2632.7,2632.0,3.80586439]
[1723382765062,2.65907,2632.5,2632.0,2.65949]
[1723382765263,5.3182,2632.5,2631.9,3.41316945]
[1723382765474,5.3182,2632.5,2632.0,3.0]
[1723382765959,2.3638,2632.4,2631.7,4.87540448]
[1723382766311,2.65989,2631.7,2631.1,7.37278617]
[1723382766465,2.3638,2632.0,2631.1,7.37278617]
[1723382766466,2.65983,2631.8,2631.2,2.66036]
[1723382766795,5.31969,2631.8,2631.2,1.15006382]
[1723382767200,2.65987,2631.7,2631.1,7.64334]
[1723382767374,2.65983,2631.8,2631.2,2.66037]
[1723382767914,2.65988,2631.7,2631.2,2.66037]
[1723382768060,2.66005,2631.6,2631.0,1.33967483]
[1723382768402,2.66019,2631.4,2631.0,1.33967483]
[1723382768794,2.66048,2631.1,2631.0,1.33967483]
[1723382769975,2.66039,2631.2,2631.0,1.33967483]
[1723382770304,2.66019,2631.4,2631.0,1.33967483]
[1723382770464,5.5834405,2631.4,2631.0,1.33967483]
[1723382771504,2.9231705,2631.4,2631.0,1.33967483]
[1723382771727,2.66032,2631.3,2631.0,1.33967483]
[1723382772022,5.5834405,2631.4,2631.0,1.33967483]
[1723382772388,5.5834405,2631.4,2631.1,0.0526094]
[1723382772589,3.48160455,2631.3,2631.1,0.0526094]
[1723382772786,5.02393,2631.5,2631.1,0.0526094]
[1723382774914,2.65988,2631.7,2631.1,0.0526094]
[1723382775231,5.31983,2631.7,2631.1,0.0526094]
[1723382775387,12.32358,2631.8,2631.2,4.98281]
[1723382775794,12.32357,2631.8,2631.2,4.98287]
[1723382776231,12.32357,2631.8,2631.3,0.05152977]
[1723382776440,2.65989,2631.7,2631.3,0.05152977]
[1723382776733,2.65989,2631.7,2631.0,1.33967483]
[1723382777102,2.66025,2631.4,2631.1,0.05161568]
[1723382777344,2.66029,2631.3,2631.1,0.05161568]
[1723382777535,2.66038,2631.2,2631.1,0.05161568]
[1723382779575,5.02409,2631.3,2631.1,0.05161568]
[1723382779956,5.02409,2631.3,2631.0,1.33967483]
[1723382780354,5.792513,2631.3,2631.0,1.33967483]
[1723382780980,2.66048,2631.1,2631.0,1.33967483]
[1723382781351,2.66048,2631.1,2631.0,1.39158777]
[1723382782581,5.32096,2631.1,2631.0,1.39158777]
[1723382783474,7.68476,2631.1,2631.0,1.39158777]
[1723382783644,9.17437858,2631.1,2631.0,1.39158777]
[1723382783848,9.17437858,2631.1,2631.0,1.33967483]
[1723382785198,11.83485858,2631.1,2631.0,1.33967483]
[1723382785344,9.17437858,2631.1,2631.0,1.33967483]
[1723382786622,11.83485858,2631.1,2631.0,1.33967483]
[1723382786891,9.17437858,2631.1,2631.0,1.33967483]
[1723382787098,11.83485858,2631.1,2631.0,1.33967483]
[1723382788089,14.83485858,2631.1,2631.0,1.33967483]
[1723382789104,12.17437858,2631.1,2631.0,1.33967483]
[1723382790968,12.17437858,2631.1,2631.0,1.39030065]
[1723382792476,14.83485858,2631.1,2631.0,1.39030065]
[1723382792894,14.83485858,2631.1,2631.0,1.33967483]
[1723382795314,12.17437858,2631.1,2631.0,1.33967483]
[1723382795815,9.81057858,2631.1,2631.0,1.33967483]
[1723382796015,8.32096,2631.1,2631.0,1.33967483]
[1723382796514,8.32096,2631.1,2631.0,1.39062508]
[1723382797175,10.59466,2631.1,2631.0,1.39062508]
[1723382797575,10.59466,2631.1,2631.0,1.33967483]
[1723382798415,13.80514,2631.1,2631.0,1.33967483]
[1723382798626,11.14466,2631.1,2631.0,1.33967483]
[1723382799162,8.32096,2631.1,2631.0,1.33967483]
[1723382799629,8.32096,2631.1,2631.0,1.39062508]
[1723382799794,8.87096,2631.1,2631.0,1.39062508]
[1723382800195,8.87096,2631.1,2631.0,1.33967483]
[1723382800416,9.435426,2631.1,2631.0,1.33967483]
[1723382800617,9.435426,2631.1,2631.0,1.39062508]
[1723382801828,9.435426,2631.1,2631.0,1.33967483]
[1723382802324,9.435426,2631.1,2631.0,1.39062508]
[1723382804229,5.32096,2631.1,2631.0,1.39062508]
[1723382804394,5.32096,2631.1,2631.0,1.33967483]
[1723382804895,5.32096,2631.1,2631.0,1.39061142]
[1723382806014,5.32096,2631.1,2631.0,1.33967483]
[1723382808755,7.98144,2631.1,2631.0,1.33967483]
[1723382809051,10.88868742,2631.1,2631.0,1.33967483]
[1723382809546,13.88868742,2631.1,2631.0,0.62056483]
[1723382809851,33.65868742,2631.1,2631.0,0.62056483]
[1723382810054,38.75656742,2631.1,2631.0,0.62056483]
[1723382811234,41.41716618,2631.1,2631.0,4.83e-06]
[1723382811436,43.41502959,2631.1,2631.0,4.83e-06]
[1723382811644,43.51502959,2631.1,2631.0,4.83e-06]
[1723382811851,43.41388657,2631.1,2631.0,4.83e-06]
[1723382812153,43.51388657,2631.1,2631.0,4.83e-06]
[1723382812316,43.51390845,2631.1,2631.0,4.83e-06]
[1723382813317,42.01280399,2631.1,2631.0,4.83e-06]
[1723382813539,41.91280399,2631.1,2631.0,4.83e-06]
[1723382813754,41.81280399,2631.1,2631.0,4.83e-06]
[1723382814057,38.60232399,2631.1,2631.0,4.83e-06]
[1723382814617,38.20697802,2631.1,2631.0,4.83e-06]
[1723382814928,38.20668641,2631.1,2631.0,4.83e-06]
[1723382815649,36.09620641,2631.1,2631.0,4.83e-06]
[1723382816023,15.77620641,2631.1,2631.0,4.83e-06]
[1723382816214,9.29692241,2631.1,2631.0,4.83e-06]
[1723382816410,5.32096,2631.1,2631.0,4.83e-06]
[1723382817579,10.41884,2631.1,2631.0,4.83e-06]
[1723382818274,11.7342216,2631.1,2631.0,4.83e-06]
[1723382818471,12.2842216,2631.1,2631.0,4.83e-06]
[1723382819588,8.30836,2631.1,2631.0,4.83e-06]
[1723382819742,5.87096,2631.1,2631.0,4.83e-06]
[1723382819940,8.53144,2631.1,2631.0,4.83e-06]
[1723382821083,10.96884,2631.1,2631.0,4.83e-06]
[1723382821265,15.28421401,2631.1,2631.0,4.83e-06]
[1723382822138,13.96884,2631.1,2631.0,4.83e-06]
[1723382822370,15.28419411,2631.1,2631.0,4.83e-06]
[1723382823238,12.62371411,2631.1,2631.0,4.83e-06]
[1723382823438,13.96884,2631.1,2631.0,4.83e-06]
[1723382823680,15.28420936,2631.1,2631.0,4.83e-06]
[1723382824575,17.94468936,2631.1,2631.0,4.83e-06]
[1723382824877,17.92915062,2631.1,2631.0,4.83e-06]
[1723382825050,20.9844497,2631.1,2631.0,4.83e-06]
[1723382825978,40.8544497,2631.1,2631.0,4.83e-06]
[1723382826146,40.9544497,2631.1,2631.0,4.83e-06]
[1723382827286,41.4511702,2631.1,2631.0,4.83e-06]
[1723382827579,41.4511702,2631.1,2629.5,0.10184]
[1723382827580,2.66179,2629.8,2629.7,2.2623]
[1723382827949,2.66179,2629.8,2629.7,2.31270201]
[1723382828478,2.66179,2629.8,2629.7,2.2623]
[1723382828683,5.32358,2629.8,2629.7,2.2623]
[1723382828984,5.32358,2629.8,2629.7,2.31272594]
[1723382829195,9.067728,2629.8,2629.7,0.05042594]
[1723382829369,9.067728,2629.8,2629.5,0.10184]
[1723382829370,7.986,2629.6,2629.5,0.10184]
[1723382829682,8.536,2629.6,2629.5,0.10184]
[1723382830256,34.2966358,2629.6,2629.5,0.10184]
[1723382830557,34.2966358,2629.6,2629.5,1e-05]
[1723382830558,37.2966358,2629.6,2629.5,1e-05]
[1723382832581,39.9586358,2629.6,2629.5,1e-05]
[1723382834887,31.6628358,2629.6,2629.5,1e-05]
[1723382835069,36.7466358,2629.6,2629.5,1e-05]
[1723382835500,37.14066149,2629.6,2629.5,1e-05]
[1723382835823,39.80266149,2629.6,2629.5,1e-05]
[1723382835975,40.35266149,2629.6,2629.5,1e-05]
[1723382836484,40.94938199,2629.6,2629.5,1e-05]
[1723382836688,40.84938199,2629.6,2629.5,1e-05]
[1723382836895,2.66331,2628.3,2628.2,2.2623]
[1723382837091,2.66331,2628.3,2628.2,2.31297315]
[1723382837299,5.32651,2628.4,2628.2,2.31297315]
[1723382837612,5.32617,2628.6,2628.2,2.31297315]
[1723382837912,2.66306,2628.6,2628.3,0.23129732]
[1723382838110,9.96285,2628.8,2628.4,2.2623]
[1723382838301,2.66301,2628.6,2628.4,2.31296577]
[1723382838500,2.66301,2628.6,2628.4,2.2623]
[1723382839115,2.66311,2628.5,2628.4,2.2623]
[1723382840983,5.32622,2628.5,2628.4,2.2623]
[1723382841994,2.66311,2628.5,2628.1,2.2623]
[1723382842204,2.66337,2628.3,2628.1,2.2623]
[1723382842406,2.66317,2628.5,2628.1,2.2623]
[1723382842722,7.3,2628.8,2628.3,2.2623]
[1723382842723,2.66303,2628.6,2628.3,2.2623]
[1723382842890,7.3,2628.8,2628.3,2.66331]
[1723382843091,7.3,2628.8,2628.4,2.2623]
[1723382843493,7.3,2628.8,2628.5,0.05060049]
[1723382843695,7.3,2628.8,2628.7,2.66291]
[1723382843922,7.3,2628.8,2628.7,4.97561834]
[1723382844081,2.66216,2629.5,2628.9,4.92495]
[1723382844281,2.66216,2629.5,2629.1,2.2623]
[1723382844482,7.3,2630.2,2629.2,0.05010942]
[1723382844483,2.66195,2629.7,2629.2,0.05010942]
[1723382844719,3.74586999,2630.4,2629.3,2.2623]
[1723382844916,2.66176,2629.9,2629.3,2.33835971]
[1723382845219,2.66162,2630.0,2629.4,2.71197157]
[1723382845424,2.66166,2630.0,2629.5,2.4552]
[1723382845917,2.66156,2630.1,2629.6,2.50490478]
[1723382846081,2.66136,2630.3,2629.8,2.4552]
[1723382846278,2.66136,2630.3,2629.9,0.04904397]
[1723382846482,5.32318,2630.0,2629.9,0.04904397]
[1723382846700,5.32318,2630.0,2629.8,2.4552]
[1723382846701,5.32338,2629.9,2629.8,2.4552]
[1723382847309,5.32338,2629.9,2629.8,2.50418269]
[1723382848437,5.855718,2629.9,2629.8,0.04898269]
[1723382848594,6.405718,2629.9,2629.8,0.04898269]
[1723382848795,5.32412,2629.6,2629.4,2.4552]
[1723382849036,2.66206,2629.6,2629.4,2.4552]
[1723382849736,2.6621,2629.5,2629.4,2.4552]
[1723382850092,5.3242,2629.5,2629.4,2.4552]
[1723382850294,3.21173,2629.9,2628.5,2.66306]
[1723382850295,2.66257,2629.1,2628.8,2.4552]
[1723382850536,2.66271,2628.9,2628.8,2.4552]
[1723382850729,2.66257,2629.1,2628.8,2.4552]
[1723382850946,7.3,2629.5,2628.8,2.4552]
[1723382850947,9.96214,2629.5,2628.8,2.4552]
[1723382851153,7.3,2629.5,2628.9,2.967004]
[1723382851355,7.3,2629.5,2628.9,2.4552]
[1723382851565,2.66256,2629.1,2628.9,2.4552]
[1723382852068,2.6626,2629.0,2628.9,2.4552]